bitfinex/quotes_ETHUSD_20220101
["timestamp","ask_amount","ask_price","bid_price","bid_amount"]
[1641048769353,2.7,3702.1,3701.7,1.35054]
[1641048769554,2.7,3702.1,3701.7,1.65054]
[1641048769752,2.7,3702.1,3701.8,1.2083401]
[1641048770154,2.7,3702.1,3701.9,0.01648428]
[1641048770755,2.7,3702.1,3701.9,0.69175428]
[1641048771203,2.7,3702.1,3702.0,0.01591585]
[1641048779303,5.76993725,3702.1,3702.0,0.01591585]
[1641048779906,2.7,3702.1,3702.0,0.01591585]
[1641048780515,5.76981048,3702.1,3702.0,0.01591585]
[1641048782214,2.7,3702.1,3702.0,0.01591585]
[1641048782843,5.76976877,3702.1,3702.0,0.01591585]
[1641048783846,2.7,3702.1,3702.0,0.01591585]
[1641048784849,5.76979371,3702.1,3702.0,0.01591585]
[1641048786409,2.7,3702.1,3702.0,0.01591585]
[1641048786907,5.76979371,3702.1,3702.0,0.01591585]
[1641048787312,2.7,3702.1,3702.0,0.01591585]
[1641048787910,5.76979371,3702.1,3702.0,0.01591585]
[1641048788913,2.7,3702.1,3702.0,0.01591585]
[1641048789313,5.76979371,3702.1,3702.0,0.01591585]
[1641048789713,2.7,3702.1,3702.0,0.01591585]
[1641048789943,5.76979371,3702.1,3702.0,0.01591585]
[1641048791150,5.76979371,3702.1,3702.0,0.40291585]
[1641048791348,5.76979371,3702.1,3702.0,2.86942137]
[1641048791548,5.76979371,3702.1,3702.0,3.86942137]
[1641048791749,5.76979371,3702.1,3702.0,1.40291585]
[1641048791949,5.76979371,3702.1,3702.0,3.88241586]
[1641048792149,2.7,3702.1,3702.0,3.88241586]
[1641048792349,2.7,3702.1,3702.0,1.40291585]
[1641048792954,2.7,3702.1,3702.0,4.90291585]
[1641048793992,2.643776,3702.1,3702.0,4.90291585]
[1641048797102,2.643776,3702.1,3702.0,3.90291585]
[1641048797552,2.643776,3702.1,3702.0,0.40291585]
[1641048797751,0.06431831,3702.8,3702.0,0.40291585]
[1641048797957,0.06431831,3702.8,3702.5,0.67506]
[1641048798153,0.06431831,3702.8,3702.6,0.387]
[1641048798354,0.06431831,3702.8,3702.6,0.69950531]
[1641048798557,0.06431831,3702.8,3702.7,1.92707667]
[1641048798952,0.06431831,3702.8,3702.7,2.92707667]
[1641048799153,0.06431831,3702.8,3702.7,1.92707667]
[1641048799356,2.57454884,3703.6,3702.7,2.92707667]
[1641048799558,0.0576,3703.6,3703.1,0.67505]
[1641048799758,0.06431714,3703.2,3703.1,0.97505]
[1641048800158,0.06431714,3703.2,3703.1,2.27505]
[1641048800857,0.06431714,3703.2,3703.1,2.66205]
[1641048801331,5.95803674,3704.1,3703.6,0.6749]
[1641048801513,5.95803674,3704.1,3703.6,1.6619]
[1641048801711,7.98409755,3704.4,3703.7,0.00625265]
[1641048801712,1.35307578,3704.3,3703.7,0.00625265]
[1641048802113,1.35307578,3704.3,3703.7,1.00625265]
[1641048802411,1.35307578,3704.3,3703.9,0.67488]
[1641048802611,1.35307578,3704.3,3703.9,1.97488]
[1641048802811,3.06831628,3704.2,3704.0,0.00454738]
[1641048803918,3.06831628,3704.3,3704.0,0.00454738]
[1641048804115,3.06831628,3704.3,3704.0,0.67946738]
[1641048804615,3.06831628,3704.3,3704.1,0.00397896]
[1641048805157,3.06831628,3704.3,3704.0,0.00454738]
[1641048805761,5.76831628,3704.3,3704.0,0.97946738]
[1641048805963,5.76831628,3704.3,3704.0,1.97946738]
[1641048806160,5.76831628,3704.3,3704.1,0.00397896]
[1641048806563,2.7,3704.3,3704.1,0.00397896]
[1641048810306,2.7,3704.3,3704.2,0.67488]
[1641048810711,2.7,3704.3,3704.2,0.67829054]
[1641048810907,2.7,3704.3,3704.2,0.00341054]
[1641048811405,2.7,3704.3,3704.0,0.00454738]
[1641048812206,2.3856301,3704.2,3704.0,0.00454738]
[1641048812454,2.3856301,3704.2,3703.3,1.0]
[1641048812455,2.3856301,3704.2,3703.9,0.00511581]
[1641048812752,2.3856301,3704.2,3703.4,0.00795792]
[1641048812959,1.02895941,3703.8,3703.4,0.00795792]
[1641048813159,1.02895941,3703.8,3703.3,0.00852635]
[1641048813561,1.02895941,3703.8,3703.1,0.67509]
[1641048813762,1.02895941,3703.8,3703.2,0.00909477]
[1641048816213,2.4481301,3704.2,3703.2,0.00909477]
[1641048816416,0.0625,3704.2,3703.2,0.00909477]
[1641048816614,0.0625,3704.2,3703.3,0.67506]
[1641048817018,2.32645885,3704.2,3703.4,0.00795792]
[1641048817516,1.02580091,3704.1,3703.4,0.00795792]
[1641048820953,1.02580091,3704.1,3703.2,0.00909477]
[1641048822156,2.30140482,3704.0,3703.2,0.00909477]
[1641048822356,2.31038093,3704.0,3703.2,0.00909477]
[1641048822556,1.02580091,3704.1,3703.2,0.00909477]
[1641048822756,2.30880552,3704.0,3703.1,0.00966319]
[1641048822956,2.33301258,3704.0,3703.1,0.00966319]
[1641048823256,1.02580091,3704.1,3703.1,0.00966319]
[1641048823456,2.3094413,3704.0,3703.1,0.00966319]
[1641048823709,1.02580091,3704.1,3703.1,0.00966319]
[1641048825714,1.02580091,3704.1,3703.2,0.67507]
[1641048825913,2.7,3704.3,3703.2,0.67507]
[1641048826114,2.7,3704.3,3703.3,0.00852635]
[1641048826317,3.06880651,3704.0,3703.3,0.00852635]
[1641048826915,3.06880651,3704.0,3703.2,0.00909477]
[1641048827115,1.35307578,3704.0,3703.2,0.00909477]
[1641048827566,1.35307578,3704.0,3703.2,0.30909477]
[1641048827766,1.35307578,3704.0,3703.4,0.67504]
[1641048827967,1.35307578,3704.0,3703.4,0.97504]
[1641048828167,1.35307578,3704.0,3703.5,0.0073895]
[1641048828766,4.42188229,3704.0,3703.5,0.0073895]
[1641048828975,5.44249823,3704.1,3703.5,0.0073895]
[1641048829672,4.42188229,3704.0,3703.3,0.00852635]
[1641048830571,3.06880651,3704.0,3703.3,0.00852635]
[1641048832303,3.06880651,3704.0,3703.4,0.67505]
[1641048832505,3.06880651,3704.0,3703.4,0.3]
[1641048832705,3.06880651,3704.0,3703.5,0.0073895]
[1641048833309,3.06880651,3704.2,3703.5,0.0073895]
[1641048833508,5.38397248,3704.2,3703.4,0.68298792]
[1641048833709,3.06880651,3704.2,3703.4,0.68298792]
[1641048833907,3.06880651,3704.2,3703.5,0.0073895]
[1641048834406,5.42090666,3704.2,3703.5,0.0073895]
[1641048834608,3.06880651,3704.2,3703.5,0.0073895]
[1641048834847,5.40511007,3704.2,3703.5,0.0073895]
[1641048835248,3.06880651,3704.2,3703.5,0.0073895]
[1641048835448,5.40836241,3704.2,3703.4,0.00795792]
[1641048835655,3.06880651,3704.1,3703.4,0.00795792]
[1641048836654,1.03322408,3704.0,3703.4,0.00795792]
[1641048837059,3.3933162,3704.0,3703.4,0.00795792]
[1641048837455,3.3933162,3704.0,3703.0,0.01023162]
[1641048837657,1.03322408,3704.0,3702.8,0.01136846]
[1641048837858,3.06880651,3703.9,3702.8,0.01136846]
[1641048838700,3.06880651,3703.9,3702.8,0.68651846]
[1641048838900,3.06880651,3703.9,3702.8,0.98651846]
[1641048839099,3.06880651,3703.9,3702.9,0.01080004]
[1641048839301,1.30173737,3703.4,3702.9,0.01080004]
[1641048839505,3.06880651,3703.9,3702.9,0.01080004]
[1641048840002,2.44711176,3704.1,3702.9,0.01080004]
[1641048840607,3.06904122,3704.0,3702.9,0.68593004]
[1641048840808,3.06904122,3704.0,3702.9,0.67513]
[1641048841010,1.17112065,3703.7,3703.0,0.01023162]
[1641048841608,3.06904122,3703.6,3703.0,0.01023162]
[1641048844754,3.06904122,3703.6,3702.9,0.01080004]
[1641048845354,3.06904122,3703.6,3702.8,0.68652846]
[1641048845755,3.06904122,3703.6,3702.9,0.01080004]
[1641048846208,3.06904122,3703.6,3702.8,0.01136846]
[1641048848111,3.06904122,3703.6,3702.9,0.387]
[1641048848314,3.06904122,3703.6,3702.9,2.12922535]
[1641048848512,3.06904122,3703.6,3703.0,0.01023162]
[1641048849013,3.06904122,3704.0,3703.4,0.99924233]
[1641048849212,3.06904122,3704.0,3703.5,0.67495]
[1641048849414,3.06904122,3704.0,3703.5,0.3073895]
[1641048849611,3.06904122,3704.0,3703.6,0.00682108]
[1641048850358,3.06904122,3704.2,3703.7,0.67496]
[1641048850759,3.06904122,3704.2,3703.8,0.00568423]
[1641048850959,3.06904122,3703.9,3703.8,0.00568423]
[1641048851763,1.35307578,3704.1,3703.8,0.00568423]
[1641048852161,3.06904122,3703.9,3703.8,0.00568423]
[1641048852762,1.35307578,3704.1,3703.8,0.00568423]
[1641048852961,3.06904122,3703.9,3703.8,0.00568423]
[1641048853820,1.35307578,3704.1,3703.8,0.00568423]
[1641048854724,4.422117,3704.2,3703.8,0.00568423]
[1641048855123,3.06904122,3704.0,3703.8,0.00568423]
[1641048855926,3.06904122,3704.2,3703.8,0.00568423]
[1641048856328,3.06904122,3703.9,3703.8,0.00568423]
[1641048856728,4.422117,3704.2,3703.8,0.00568423]
[1641048857457,3.06904122,3704.2,3703.8,0.00568423]
[1641048857857,3.06904122,3704.1,3703.8,0.00568423]
[1641048858460,3.06904122,3704.2,3703.8,0.00568423]
[1641048858860,0.01068267,3704.1,3703.8,0.00568423]
[1641048859462,3.06904122,3704.0,3703.8,0.00568423]
[1641048862403,2.37120181,3703.9,3703.5,0.0073895]
[1641048862608,2.37120181,3703.9,3703.3,0.00852635]
[1641048862807,3.72427759,3703.9,3703.0,0.01023162]
[1641048863008,1.35307578,3703.9,3703.0,0.01023162]
[1641048863506,4.422117,3703.8,3703.0,0.01023162]
[1641048863905,4.422117,3703.8,3702.9,0.01080004]
[1641048864106,4.422117,3704.0,3702.9,0.01080004]
[1641048864305,0.01068455,3703.7,3703.1,0.67511]
[1641048864509,3.07972577,3703.7,3703.1,0.67511]
[1641048864711,3.07972577,3703.7,3703.2,0.00909477]
[1641048865160,3.06904122,3703.6,3703.2,0.00909477]
[1641048865358,3.06904122,3703.6,3703.1,0.00966319]
[1641048865660,3.06904122,3703.6,3703.1,0.68476319]
[1641048866064,3.06904122,3703.6,3703.2,0.00909477]
[1641048866663,3.06904122,3703.6,3703.1,0.00966319]
[1641048869817,0.01068454,3703.5,3703.1,0.00966319]
[1641048870418,0.01068454,3703.5,3703.1,0.68476319]
[1641048870616,3.06904122,3703.4,3703.1,0.68476319]
[1641048870817,3.06904122,3703.4,3703.2,0.00909477]
[1641048875460,0.01068468,3703.3,3703.2,0.00909477]
[1641048876210,0.01068468,3703.3,3703.1,0.00966319]
[1641048876413,0.01068468,3703.3,3703.0,0.01023162]
[1641048876414,3.0797259,3703.3,3703.0,0.01023162]
[1641048876609,3.0797259,3703.3,3703.1,0.00966319]
[1641048876809,3.0797259,3703.3,3702.8,0.3]
[1641048876810,3.0797259,3703.3,3702.9,0.01080004]
[1641048877213,3.06904122,3703.2,3702.9,0.01080004]
[1641048877411,3.06904122,3703.2,3702.7,0.01193689]
[1641048877811,3.06904122,3703.2,3702.8,0.67515]
[1641048878014,3.06904122,3703.2,3702.8,0.97515]
[1641048878212,3.06904122,3703.2,3702.9,0.01080004]
[1641048879012,3.06904122,3703.2,3702.9,0.68594004]
[1641048879414,3.06904122,3703.2,3703.0,0.01023162]
[1641048880071,3.06904122,3703.2,3703.0,0.68535162]
[1641048880467,3.06904122,3703.2,3703.1,0.00966319]
[1641048880670,5.76904122,3703.2,3703.1,0.00966319]
[1641048881469,5.76904122,3703.2,3702.9,0.01080004]
[1641048882472,3.06904122,3703.1,3702.9,0.01080004]
[1641048882870,3.06904122,3703.1,3702.9,0.68594004]
[1641048883273,3.06904122,3703.1,3703.0,0.01023162]
[1641048884612,3.06904122,3703.1,3703.0,0.31023162]
[1641048885212,3.06904122,3703.1,3703.0,0.01023162]
[1641048885611,3.06904122,3703.1,3702.8,0.01136846]
[1641048886414,0.01068569,3703.0,3702.8,0.68650846]
[1641048886814,0.01068569,3703.0,3702.9,0.01080004]
[1641048888256,0.01068569,3703.0,3702.9,0.39780004]
[1641048889057,0.01068569,3703.0,3702.9,1.39780004]
[1641048889957,0.01068569,3703.0,3702.9,0.39780004]
[1641048890158,0.01068569,3703.0,3702.9,1.39780004]
[1641048890359,0.01068569,3703.0,3702.9,0.39780004]
[1641048890560,0.01068569,3703.0,3702.9,1.39780004]
[1641048890864,0.01068569,3703.0,3702.9,0.39780004]
[1641048891127,0.01068569,3703.0,3702.9,1.39780004]
[1641048891332,0.01068569,3703.0,3702.9,0.39780004]
[1641048893525,0.01068569,3703.0,3702.9,0.01080004]
[1641048893944,0.01068569,3703.0,3702.5,0.01307373]
[1641048895560,0.01068569,3703.0,3702.5,0.98827373]
[1641048895760,0.01068569,3703.0,3702.5,0.61307373]
[1641048895962,0.01068569,3703.0,3702.6,0.01250531]
[1641048896559,0.01068569,3703.0,3702.5,0.01307373]
[1641048896763,0.01068569,3703.0,3702.7,0.67515]
[1641048896961,0.01068569,3703.0,3702.7,0.97515]
[1641048897161,0.01068569,3703.0,3702.8,0.01136846]
[1641048897561,0.01068569,3703.0,3702.8,0.31136846]
[1641048897761,0.01068569,3703.0,3702.8,0.67512]
[1641048897962,0.01068569,3703.0,3702.9,0.01080004]
[1641048909526,0.01422433,3703.0,3702.9,0.01080004]
[1641048913615,3.08344219,3703.0,3702.9,0.01080004]
[1641048916021,3.08344219,3703.0,3702.8,0.31136846]
[1641048916218,3.08344219,3703.0,3702.9,0.01080004]
[1641048918369,3.08344219,3703.0,3702.8,0.31136846]
[1641048918569,4.38271031,3703.0,3702.9,0.01080004]
[1641048918774,6.77138521,3703.0,3702.9,0.01080004]
[1641048918975,6.77138521,3703.0,3702.8,0.01136846]
[1641048919177,4.38271031,3703.0,3702.3,1.01421058]
[1641048919472,4.38271031,3703.0,3702.4,0.01364216]
[1641048919473,2.33623039,3702.9,3702.4,0.01364216]
[1641048919673,4.38271031,3703.0,3702.4,0.01364216]
[1641048919878,5.40089549,3702.9,3702.4,0.01364216]
[1641048920075,3.06921786,3702.9,3702.3,0.01421058]
[1641048920276,3.06921786,3702.9,3702.2,0.01477901]
[1641048920475,3.06921786,3702.8,3702.2,0.01477901]
[1641048921518,3.06921786,3702.9,3702.2,0.01477901]
[1641048921720,3.06921786,3702.9,3702.2,0.69003901]
[1641048922122,3.06921786,3702.9,3702.3,0.01421058]
[1641048922823,5.3714227,3702.9,3702.3,0.01421058]
[1641048923120,3.06921786,3702.9,3702.3,0.01421058]
[1641048923522,5.39176762,3702.9,3702.2,0.01477901]
[1641048923722,5.39603054,3702.9,3702.2,0.01477901]
[1641048923921,3.06921786,3702.9,3702.2,0.01477901]
[1641048924324,3.06921786,3702.8,3702.2,0.01477901]
[1641048924973,5.39931382,3702.9,3702.2,0.01477901]
[1641048925180,3.06921786,3702.7,3702.2,0.01477901]
[1641048925575,3.06921786,3702.8,3702.2,0.01477901]
[1641048927375,2.31045919,3702.7,3702.2,0.01477901]
[1641048927576,3.06921786,3702.8,3702.2,0.01477901]
[1641048927976,3.06921786,3702.6,3702.2,0.01477901]
[1641048928377,3.06921786,3702.7,3702.2,0.01477901]
[1641048928813,2.37329365,3702.9,3702.2,0.01477901]
[1641048929015,2.36692927,3702.9,3702.2,0.01477901]
[1641048929213,3.06960505,3702.6,3702.0,0.01591585]
[1641048929415,2.31954227,3702.5,3702.0,0.01591585]
[1641048929614,2.32987132,3702.5,3702.0,0.01591585]
[1641048929823,3.06960505,3702.8,3702.0,0.01591585]
[1641048930020,2.39726964,3702.7,3702.0,0.01591585]
[1641048930222,3.06960505,3702.4,3701.8,0.0170527]
[1641048931022,3.06960505,3702.6,3701.8,0.0170527]
[1641048931226,3.06960505,3702.3,3701.8,0.6923627]
[1641048931622,3.06960505,3702.3,3701.9,0.01648428]
[1641048931823,3.06960505,3702.7,3701.9,0.01648428]
[1641048932463,3.06960505,3702.7,3701.9,0.31648428]
[1641048932862,3.06960505,3702.7,3702.0,0.01591585]
[1641048934269,3.06960505,3702.7,3701.8,0.0170527]
[1641048934469,3.06960505,3702.7,3701.8,0.6923627]
[1641048934868,3.06960505,3702.7,3701.9,0.01648428]
[1641048935469,0.0141932,3702.6,3701.9,0.01648428]
[1641048935672,0.0141932,3702.6,3701.8,0.6923727]
[1641048935869,0.0141932,3702.6,3701.9,0.01648428]
[1641048936319,0.0141932,3702.6,3701.8,0.0170527]
[1641048939224,0.0141932,3702.6,3701.9,0.67531]
[1641048939624,0.0141932,3702.6,3702.0,0.01591585]
[1641048941471,0.0141932,3702.6,3701.8,0.0170527]
[1641048941672,0.0141932,3702.6,3701.9,0.01648428]
[1641048941869,0.0141932,3702.6,3701.8,0.0170527]
[1641048942069,2.7141932,3702.6,3701.8,0.0170527]
[1641048942470,3.06983446,3702.5,3701.8,0.0170527]
[1641048942872,3.06983446,3702.5,3701.8,0.6923727]
[1641048943375,3.06983446,3702.5,3701.9,0.01648428]
[1641048943826,3.06983446,3702.5,3701.8,0.3170527]
[1641048944026,3.06983446,3702.5,3701.9,0.01648428]
[1641048944232,3.06983446,3702.5,3701.9,0.69180428]
[1641048944425,3.06983446,3702.5,3701.9,0.67532]
[1641048944625,3.06983446,3702.5,3702.0,0.01591585]
[1641048945027,2.7141932,3702.6,3702.0,0.01591585]
[1641048945227,2.7141932,3702.6,3702.0,0.6753]
[1641048945634,2.7141932,3702.6,3702.1,0.01534743]
[1641048946434,2.7141932,3702.6,3702.2,0.67527]
[1641048946837,2.7141932,3702.6,3702.3,0.01421058]
[1641048948764,2.7141932,3702.6,3702.1,0.31534743]
[1641048948964,2.7141932,3702.6,3702.2,0.01477901]
[1641048953328,2.7141932,3702.6,3702.2,7.01477901]
[1641048953526,2.7141932,3702.6,3702.3,1.0]
[1641048953729,2.7141932,3702.6,3702.3,1.01421058]
[1641048954027,2.7141932,3702.6,3702.4,0.01364216]
[1641048954530,2.7141932,3702.6,3702.2,0.01477901]
[1641048955173,2.7141932,3702.6,3702.1,0.01534743]
[1641048959224,2.32973403,3702.5,3702.1,0.01534743]
[1641048959628,3.06983003,3702.5,3701.9,0.01648428]
[1641048963389,3.06983003,3702.5,3701.9,0.69182428]
[1641048963790,3.06983003,3702.5,3702.0,0.01591585]
[1641048964196,3.06983003,3702.5,3702.0,0.31591585]
[1641048964590,3.06983003,3702.5,3702.1,0.01534743]
[1641048969868,3.06983003,3702.5,3702.1,0.31534743]
[1641048970073,3.06983003,3702.5,3702.1,0.99065743]
[1641048970270,3.06983003,3702.5,3702.2,0.01477901]
[1641048970468,3.06983003,3702.5,3702.2,0.40177901]
[1641048970673,2.7141932,3702.6,3702.2,0.40177901]
[1641048970869,2.7141932,3702.6,3702.3,0.01421058]
[1641048971072,2.7141932,3702.6,3702.4,0.687]
[1641048971273,2.7141932,3702.6,3702.4,2.0371969]
[1641048971475,2.7141932,3702.6,3702.5,0.31307373]
[1641048972072,2.7141932,3702.6,3702.5,1.31145374]
[1641048972472,2.7141932,3702.6,3702.5,2.31145374]
[1641048972671,2.7141932,3702.6,3702.5,2.98654374]
[1641048972872,2.7141932,3702.6,3702.5,3.37354374]
[1641048973272,2.7141932,3702.6,3702.5,6.13301056]
[1641048973720,2.7141932,3702.6,3702.5,3.37354374]
[1641048977772,2.7141932,3702.6,3702.5,6.13336997]
[1641048980375,2.7141932,3702.6,3702.5,3.37354374]
[1641048981222,2.7141932,3702.6,3702.5,6.13571184]
[1641048982023,2.7141932,3702.6,3702.5,3.37354374]
[1641048985468,2.7141932,3702.6,3702.5,2.37516373]
[1641048986471,2.7141932,3702.6,3702.5,1.37516373]
[1641048987274,2.7141932,3702.6,3702.5,0.70007373]
[1641048991636,2.7141932,3702.6,3702.5,0.40007373]
[1641048993073,2.7141932,3702.6,3702.5,0.70007373]
[1641048993274,2.7141932,3702.6,3702.5,1.00007373]
[1641048999528,2.6641932,3702.6,3702.5,1.00007373]
[1641049001479,2.6641932,3702.6,3702.5,0.987]
[1641049004023,2.67487999,3702.6,3702.5,0.987]
[1641049034041,2.67487999,3702.6,3702.5,1.987]
[1641049035041,2.67487999,3702.6,3702.5,0.987]
[1641049037989,2.67487999,3702.6,3702.5,0.387]
[1641049038491,2.67487999,3702.6,3702.5,0.687]
[1641049039693,2.67487999,3702.6,3702.5,1.66223]
[1641049040092,2.67487999,3702.6,3702.5,1.06223]
[1641049043030,2.67487999,3702.6,3702.5,2.06223]
[1641049043431,2.67487999,3702.6,3702.5,1.06223]
[1641049043631,2.67487999,3702.6,3702.5,2.06223]
[1641049043831,2.67487999,3702.6,3702.5,1.06223]
[1641049044032,2.67487999,3702.6,3702.5,2.06223]
[1641049044230,2.67487999,3702.6,3702.5,1.06223]
[1641049044434,2.67487999,3702.6,3702.5,2.06223]
[1641049044631,2.67487999,3702.6,3702.5,1.06223]
[1641049047489,2.67487999,3702.6,3702.5,1.66223]
[1641049047690,2.67487999,3702.6,3702.5,2.66223]
[1641049047890,2.67487999,3702.6,3702.5,1.66223]
[1641049048091,2.67487999,3702.6,3702.5,2.66223]
[1641049048291,2.67487999,3702.6,3702.5,1.66223]
[1641049048494,2.67487999,3702.6,3702.5,2.66223]
[1641049051931,2.67487999,3702.6,3702.5,1.66223]
[1641049052134,2.67487999,3702.6,3702.5,2.66223]
[1641049052384,2.67487999,3702.6,3702.5,1.66223]
[1641049052587,2.67487999,3702.6,3702.5,2.66223]
[1641049052789,2.67487999,3702.6,3702.5,1.66223]
[1641049052987,2.67487999,3702.6,3702.5,2.66223]
[1641049053391,2.67487999,3702.6,3702.5,1.66223]
[1641049053589,2.67487999,3702.6,3702.5,0.987]
[1641049055493,2.67487999,3702.6,3702.5,1.987]
[1641049056130,2.67487999,3702.6,3702.5,0.987]
[1641049061407,2.67487999,3702.6,3702.5,0.687]
[1641049062407,2.67487999,3702.6,3702.5,0.987]
[1641049067686,2.67487999,3702.6,3702.5,0.687]
[1641049068484,5.06894151,3702.6,3702.3,1.0]
[1641049068684,5.06894151,3702.6,3702.3,1.3]
[1641049068887,5.06894151,3702.6,3702.4,0.01364216]
[1641049069094,2.70316048,3702.5,3702.4,0.01364216]
[1641049069290,2.70316048,3702.5,3702.3,0.01421058]
[1641049069491,2.70316048,3702.5,3701.8,2.76233271]
[1641049069492,2.70316048,3702.5,3701.9,0.01648428]
[1641049070092,5.77281242,3702.5,3701.9,0.01648428]
[1641049070294,1.32347961,3702.3,3701.9,0.01648428]
[1641049070491,2.53478603,3702.2,3701.9,0.01648428]
[1641049070691,2.53478603,3702.2,3701.7,0.01762112]
[1641049071132,3.06965194,3702.1,3701.7,0.01762112]
[1641049071533,2.37473123,3702.0,3701.7,0.01762112]
[1641049071734,2.33618129,3702.0,3701.7,0.01762112]
[1641049072034,3.06965194,3702.1,3701.7,0.01762112]
[1641049072433,3.06965194,3701.9,3701.7,0.01762112]
[1641049073134,3.06965194,3701.9,3701.5,0.01875797]
[1641049073334,3.06965194,3702.1,3701.5,0.01875797]
[1641049074134,3.74516194,3702.1,3701.5,0.01875797]
[1641049074735,0.66831302,3701.9,3701.1,0.32103166]
[1641049074980,0.66831302,3701.9,3701.2,0.02046324]
[1641049075181,2.51118193,3701.8,3701.2,0.02046324]
[1641049075385,2.51118193,3701.8,3701.1,0.02103166]
[1641049076080,3.06965194,3701.7,3701.1,0.02103166]
[1641049076284,2.328978,3701.6,3701.1,0.02103166]
[1641049076585,2.15454581,3701.6,3701.1,0.02103166]
[1641049076787,3.06965194,3701.7,3701.1,0.02103166]
[1641049076985,3.06965194,3701.5,3701.1,0.02103166]
[1641049077384,3.06965194,3701.8,3701.1,0.02103166]
[1641049077585,2.38643496,3701.7,3701.1,0.02103166]
[1641049078485,3.06965194,3701.6,3701.1,0.02103166]
[1641049079131,2.33376339,3701.5,3701.1,0.02103166]
[1641049079336,3.06965194,3701.6,3701.1,0.02103166]
[1641049079536,5.58952564,3701.8,3701.1,0.02103166]
[1641049080138,0.67559,3701.6,3701.1,0.02103166]
[1641049080338,3.88194728,3701.6,3700.9,0.02216851]
[1641049080543,15.77,3701.4,3700.8,0.02273693]
[1641049080740,2.53076728,3701.3,3700.8,0.02273693]
[1641049080938,15.77,3701.4,3700.8,0.02273693]
[1641049081138,1.27287675,3700.9,3700.8,0.02273693]
[1641049081338,15.77,3701.4,3700.8,0.02273693]
[1641049081544,3.06965194,3701.2,3700.8,0.02273693]
[1641049082143,5.27981154,3701.3,3700.3,1.02557905]
[1641049082144,3.74529194,3701.3,3700.3,1.02557905]
[1641049082395,3.62175571,3701.1,3700.3,1.02557905]
[1641049082601,3.62175571,3701.1,3700.4,0.02501063]
[1641049083596,1.1668041,3701.1,3700.4,0.02501063]
[1641049083797,2.35188168,3701.0,3700.4,0.02501063]
[1641049083999,5.42153362,3701.0,3700.4,0.02501063]
[1641049084599,3.8668041,3701.1,3700.4,0.02501063]
[1641049084600,3.06965194,3700.9,3700.4,0.02501063]
[1641049085200,3.06965194,3700.9,3700.3,0.02557905]
[1641049085398,3.06965194,3700.9,3700.2,1.02614747]
[1641049085598,3.06965194,3701.0,3700.2,3.78848018]
[1641049085799,3.06965194,3701.0,3700.3,0.02557905]
[1641049086002,3.06965194,3701.0,3700.6,1.35099]
[1641049086233,3.06965194,3701.0,3700.6,1.27551]
[1641049086434,5.39241315,3701.0,3700.7,0.02330536]
[1641049086634,3.06965194,3701.0,3700.7,0.02330536]
[1641049087036,5.39356538,3701.0,3700.7,0.02330536]
[1641049087333,5.40157321,3701.0,3700.5,0.0244422]
[1641049087536,5.40227739,3701.0,3700.5,0.0244422]
[1641049087736,5.40020857,3701.0,3700.5,0.0244422]
[1641049087939,5.40321234,3701.0,3700.4,0.02501063]
[1641049088139,3.06965194,3701.0,3700.4,0.02501063]
[1641049088441,3.06965194,3700.9,3700.4,0.02501063]
[1641049088741,3.06965194,3700.9,3700.3,0.02557905]
[1641049088938,2.7,3701.1,3700.3,0.02557905]
[1641049091387,2.39784883,3701.0,3700.3,0.02557905]
[1641049091885,2.7,3701.1,3700.3,0.02557905]
[1641049092084,2.367229,3701.0,3700.3,0.02557905]
[1641049092285,2.7,3701.1,3700.3,0.02557905]
[1641049092487,2.7,3701.1,3700.1,1.22151759]
[1641049092686,0.00397896,3701.0,3700.1,1.22151759]
[1641049093088,0.00341054,3700.9,3700.1,1.22151759]
[1641049093285,0.00341054,3700.9,3700.3,0.67557]
[1641049093487,0.00284212,3700.8,3700.3,0.67557]
[1641049093938,0.00227369,3700.7,3700.3,0.67557]
[1641049094135,0.00227369,3700.7,3700.3,0.97557]
[1641049094336,0.00170527,3700.6,3700.3,0.97557]
[1641049094636,0.00113685,3700.5,3700.3,1.27557]
[1641049097791,0.00113685,3700.5,3700.3,0.67557]
[1641049097992,0.00113685,3700.5,3699.4,1.2302003]
[1641049098197,0.00113685,3700.5,3699.4,0.2302003]
[1641049098399,0.00113685,3700.5,3699.5,0.00454739]
[1641049098400,0.67586,3700.2,3699.5,0.00454739]
[1641049098795,1.40759936,3699.9,3699.5,0.00454739]
[1641049099199,1.40759936,3699.9,3699.2,0.00625266]
[1641049099397,1.40759936,3699.9,3699.1,0.00682108]
[1641049099896,1.40759936,3699.9,3698.9,0.00795793]
[1641049100303,6.42206032,3700.4,3698.9,0.68374793]
[1641049100801,3.89309,3700.4,3699.0,0.00738951]
[1641049101239,1.19264393,3700.2,3699.0,0.00738951]
[1641049101440,2.78559313,3700.1,3699.0,0.00738951]
[1641049102242,2.78559313,3700.1,3698.9,0.30795793]
[1641049102440,2.78559313,3700.1,3698.7,1.3615]
[1641049102441,2.78559313,3700.1,3699.0,0.00738951]
[1641049102843,0.67587,3700.0,3698.9,0.30795793]
[1641049103043,2.55699739,3699.9,3698.9,0.00795793]
[1641049103244,2.55699739,3699.9,3699.0,0.00738951]
[1641049103444,2.55699739,3699.9,3698.9,0.00795793]
[1641049103645,2.55699739,3699.9,3698.9,0.30795793]
[1641049103845,1.19264393,3700.2,3698.9,0.3]
[1641049104045,1.19264393,3700.2,3699.0,0.00738951]
[1641049105085,2.7,3699.9,3698.9,0.30795793]
[1641049105288,2.7,3699.9,3699.0,0.00738951]
[1641049105486,2.7,3699.9,3699.0,0.68314951]
[1641049105689,2.7,3699.9,3699.1,0.387]
[1641049105889,2.7,3699.9,3699.1,0.39382108]
[1641049106089,2.7,3699.9,3699.2,0.00625266]
[1641049106293,2.7,3699.9,3699.3,0.387]
[1641049106493,2.7,3699.9,3699.3,0.687]
[1641049106692,2.7,3699.9,3699.4,0.00511581]
[1641049106897,2.44174249,3699.8,3699.4,0.00511581]
[1641049107291,2.44174249,3699.8,3699.0,0.00738951]
[1641049107491,2.7,3699.9,3699.0,0.00738951]
[1641049109337,2.3355445,3699.8,3699.0,0.00738951]
[1641049109537,2.7,3699.9,3699.0,0.00738951]
[1641049109942,2.7,3699.9,3699.1,0.387]
[1641049110343,2.7,3699.9,3699.2,0.00625266]
[1641049110545,2.7,3699.9,3699.3,0.687]
[1641049111347,2.7,3699.9,3699.4,1.35637581]
[1641049111547,2.7,3699.9,3699.6,0.67564]
[1641049111745,2.7,3699.9,3699.7,0.67563]
[1641049111948,2.7,3699.9,3699.7,0.67904054]
[1641049112147,2.7,3699.9,3699.8,0.00284212]
[1641049113786,2.7,3699.9,3699.8,0.67847212]
[1641049113986,2.7,3699.9,3699.8,0.97847212]
[1641049115896,2.7,3699.9,3699.8,1.36547212]
[1641049117750,2.7,3699.9,3699.8,0.68984212]